lending/lending_fUSD_20260104
["ID","MTS","AMOUNT","RATE_DAILY","PERIOD"]
[400402241,1767514018979,-187.63816536,0.00017999,2]
[400402242,1767514019010,-98.76915722,0.00017999,2]
[400402243,1767514023883,-193.5943505,0.00017999,2]
[400402244,1767514025059,500.0,0.00017999,2]
[400402245,1767514026485,-207.63649228,0.00017999,2]
[400402246,1767514026517,-61.69231051,0.00017999,2]
[400402247,1767514028212,1429.35,0.0001737,2]
[400402248,1767514028303,10000.01,0.0001737,2]
[400402249,1767514028396,2463.79,0.0001737,2]
[400402250,1767514028518,-101.26358758,0.00017999,2]
[400402251,1767514028548,-243.49256888,0.00017999,2]
[400402252,1767514031402,-166.93819676,0.00017999,2]
[400402253,1767514034161,-89.56923436,0.00017999,2]
[400402254,1767514034195,-78.58122803,0.00017999,2]
[400402255,1767514036674,-316.82403425,0.00017999,2]
[400402256,1767514039404,-104.59473772,0.00017999,2]
[400402257,1767514039435,-140.55447601,0.00017999,2]
[400402258,1767514042793,-283.52983274,0.00017999,2]
[400402259,1767514045491,-75.91569125,0.00017999,2]
[400402260,1767514045521,-82.17964267,0.00017999,2]
[400402261,1767514047135,-417.82035733,0.00017999,2]
[400402262,1767514047161,-500.0,0.00017999,2]
[400402263,1767514047187,-60.7369134,0.00017999,2]
[400402264,1767514047728,-165.33600017,0.00017999,2]
[400402265,1767514050393,-273.92708643,0.00017999,2]
[400402266,1767514050420,-49.31422407,0.00017999,2]
[400402267,1767514052935,-129.32589461,0.00017999,2]
[400402268,1767514052963,-63.4567317,0.00017999,2]
[400402269,1767514056627,-174.95835841,0.00017999,2]
[400402270,1767514058589,-261.58490989,0.00017999,2]
[400402271,1767514058614,-243.10799455,0.00017999,2]
[400402272,1767514061347,-163.01688665,0.00017999,2]
[400402273,1767514061376,-174.56802001,0.00017999,2]
[400402274,1767514061404,-93.65669908,0.00017999,2]
[400402275,1767514067489,-282.90204108,0.00017999,2]
[400402276,1767514071562,-116.47408214,0.00017999,2]
[400402277,1767514071592,-188.31668313,0.00017999,2]
[400402278,1767514071623,-11.94479846,0.00017999,2]
[400402279,1767514074211,-255.488989,0.00017999,2]
[400402280,1767514076137,-210.69672072,0.00017999,2]
[400402281,1767514076168,-47.91916821,0.00017999,2]
[400402282,1767514079056,-309.00967224,0.00017999,2]
[400402285,1767514081336,170.0,0.00017998,2]
[400402288,1767514126072,-63.95860028,0.00017999,2]
[400402289,1767514126101,-99.17863315,0.00017999,2]
[400402290,1767514128545,-97.64921708,0.00017999,2]
[400402291,1767514128578,-160.28179489,0.00017999,2]
[400402292,1767514130547,-181.27526242,0.00017999,2]
[400402293,1767514132665,-158.44294269,0.00017999,2]
[400402294,1767514132694,-381.0455418,0.00017999,2]
[400402295,1767514137151,-118.9544582,0.00017999,2]
[400402296,1767514137176,-58.57388979,0.00017999,2]
[400402297,1767514143405,12764.61,0.00043707,30]
[400402298,1767514156567,-122.27566963,0.00017999,2]
[400402299,1767514156596,-287.17334878,0.00017999,2]
[400402300,1767514159289,-173.10566553,0.00017999,2]
[400402301,1767514163020,-35.67057525,0.00017999,2]
[400402302,1767514163047,-306.44053824,0.00017999,2]
[400402303,1767514165606,-0.44375167,0.00017999,2]
[400402304,1767514165632,-320.68568883,0.00017999,2]
[400402305,1767514167215,501.38501556,0.00017999,2]
[400402306,1767514168230,-173.57223932,0.00017999,2]
[400402307,1767514169639,-5.74207185,0.00017999,2]
[400402308,1767514169664,-206.94481449,0.00017999,2]
[400402309,1767514171793,-236.34093269,0.00017999,2]
[400402310,1767514172130,-56.71425282,0.00017999,2]
[400402311,1767514172153,-500.0,0.00017999,2]
[400402312,1767514172178,-500.0,0.00017999,2]
[400402313,1767514172199,-500.0,0.00017999,2]
[400402314,1767514172222,-500.0,0.00017999,2]
[400402315,1767514172244,-500.0,0.00017999,2]
[400402316,1767514172265,-500.0,0.00017999,2]
[400402317,1767514172288,-500.0,0.00017999,2]
[400402318,1767514172311,-500.0,0.00017999,2]
[400402319,1767514172333,-500.0,0.00017999,2]
[400402320,1767514172355,-500.0,0.00017999,2]
[400402321,1767514172378,-28.07082318,0.00017999,2]
[400402322,1767514174019,-418.26212179,0.00017999,2]
[400402323,1767514177709,-53.66705503,0.00017999,2]
[400402324,1767514177735,-135.94407636,0.00017999,2]
[400402325,1767514182490,-199.09371227,0.00017999,2]
[400402328,1767514187645,-164.96221137,0.00017999,2]
[400402329,1767514187670,-72.97027489,0.00017999,2]
[400402331,1767514191167,-233.2957982,0.00017999,2]
[400402333,1767514193203,-193.73392691,0.00017999,2]
[400402334,1767514193229,-20.03840718,0.00017999,2]
[400402335,1767514195020,-470.12465888,0.00017999,2]
[400402336,1767514198741,-9.83693394,0.00017999,2]
[400402337,1767514198771,-238.92681915,0.00017999,2]
[400402338,1767514201194,197.0,0.00017998,2]
[400402339,1767514201491,847.0,0.00017998,2]
[400402340,1767514202943,-182.95573177,0.00017999,2]
[400402341,1767514203971,304.0,0.00017999,2]
[400402342,1767514204332,-168.42467707,0.00017999,2]
[400402343,1767514206874,-17.80089033,0.00017999,2]
[400402344,1767514206902,-155.93683141,0.00017999,2]
[400402345,1767514209079,-159.62664166,0.00017999,2]
[400402347,1767514210578,-174.42241913,0.00017999,2]
[400402350,1767514215069,-10.0141078,0.00017999,2]
[400402351,1767514215097,-145.22973574,0.00017999,2]
[400402352,1767514216214,340.69341682,0.000179,2]
[400402354,1767514217603,-289.37263991,0.00017999,2]
[400402355,1767514218219,975.201133,0.00017999,2]
[400402357,1767514219533,-65.39762435,0.00017999,2]
[400402358,1767514219560,-197.26001672,0.00017999,2]
[400402361,1767514222514,-302.73998328,0.00017999,2]
[400402362,1767514222540,-44.50022391,0.00017999,2]
[400402366,1767514224637,-175.14988372,0.00017999,2]
[400402367,1767514226391,1878.0,0.00032877,120]
[400402368,1767514226651,-280.34989237,0.00017999,2]
[400402369,1767514226678,-216.8279167,0.00017999,2]
[400402371,1767514229236,-184.94993181,0.00017999,2]
[400402372,1767514230769,-98.22215149,0.00017999,2]
[400402373,1767514230795,-62.5344948,0.00017999,2]
[400402377,1767514232255,-418.26636555,0.00017999,2]
[400402378,1767514232268,-19.19913965,0.00017999,2]
[400402379,1767514232277,-472.85306952,0.00017999,2]
[400402380,1767514232287,-500.0,0.00017999,2]
[400402381,1767514232297,-396.86734025,0.00017999,2]
[400402382,1767514232308,-103.13265975,0.00017999,2]
[400402383,1767514232318,-500.0,0.00017999,2]
[400402384,1767514232329,-500.0,0.00017999,2]
[400402385,1767514232338,-500.0,0.00017999,2]
[400402386,1767514232353,-218.47142528,0.00017999,2]
[400402387,1767514232368,-281.52857472,0.00017999,2]
[400402388,1767514232378,-113.47142533,0.00017999,2]
[400402389,1767514232393,-386.52857467,0.00017999,2]
[400402390,1767514232404,-267.5505497,0.00017999,2]
[400402391,1767514232415,-232.4494503,0.00017999,2]
[400402392,1767514232426,-500.0,0.00017999,2]
[400402393,1767514232436,-500.0,0.00017999,2]
[400402394,1767514232445,-500.0,0.00017999,2]
[400402395,1767514232455,-500.0,0.00017999,2]
[400402396,1767514232465,-500.0,0.00017999,2]
[400402397,1767514232475,-409.44901841,0.00017999,2]
[400402398,1767514232484,-236.34093269,0.00017999,2]
[400402399,1767514232494,-360.50798662,0.00017999,2]
[400402400,1767514232504,-300.0,0.00017999,2]
[400402401,1767514232514,-315.78693653,0.00017999,2]
[400402402,1767514232523,-300.0,0.00017999,2]
[400402403,1767514232534,-300.0,0.00017999,2]
[400402404,1767514232543,-81.70885449,0.00017999,2]
[400402405,1767514232555,-218.29114551,0.00017999,2]
[400402406,1767514232565,-300.0,0.00017999,2]
[400402407,1767514232575,-195.0,0.00017999,2]
[400402408,1767514232585,-193.0,0.00017999,2]
[400402409,1767514232594,-289.35873816,0.00017999,2]
[400402410,1767514232606,-300.0,0.00017999,2]
[400402412,1767514232615,-300.0,0.00017999,2]
[400402414,1767514232625,-377.03825781,0.00017999,2]
[400402416,1767514232635,-195.0,0.00017999,2]
[400402418,1767514232644,-193.0,0.00017999,2]
[400402420,1767514232653,-193.0,0.00017999,2]
[400402422,1767514232663,-197.21778954,0.00017999,2]
[400402424,1767514232672,-21049.09406898,0.00018,2]
[400402426,1767514232684,-36485.42452631,0.00018,2]
[400402499,1767514238288,-825.89185212,0.00018,2]
[400402505,1767514238335,-393.21898432,0.00018,2]
[400402506,1767514238347,-2006.39999792,0.00018,2]
[400402507,1767514238380,-2032.33314763,0.00018,2]
[400402508,1767514238440,-1405.75311648,0.00018,2]
[400402509,1767514238715,-57618.01184661,0.00018,2]
[400402511,1767514238730,-2811.30212976,0.00018,2]
[400402514,1767514238741,-588.0,0.00018,2]
[400402515,1767514238754,-870.08511614,0.00018,2]
[400402516,1767514238765,-2506.04343299,0.00018,2]
[400402524,1767514240400,-634.88681243,0.00018,2]
[400402526,1767514240413,-3561.99998,0.00018,2]
[400402528,1767514240425,-691.9655935,0.00018,2]
[400402557,1767514243247,-1.7e-07,0.00018,2]
[400402560,1767514243266,-8762.91569141,0.00018,2]
[400402562,1767514243277,-8947.21879473,0.00018,2]
[400402563,1767514243299,-8943.78386462,0.00018,2]
[400402564,1767514243310,-9077.54866152,0.00018,2]
[400402565,1767514243322,-8943.84023489,0.00018,2]
[400402566,1767514243338,-373237.26526274,0.00018,2]
[400402567,1767514243349,-56651.47195505,0.00018,2]
[400402568,1767514243360,-8894.3368452,0.00018,2]
[400402569,1767514243398,-3864.46995742,0.00018,2]
[400402570,1767514243410,-4459.31859647,0.00018,2]
[400402571,1767514243425,-5301020.70309903,0.00018,2]
[400402576,1767514244349,-602.17365666,0.00018,2]
[400402577,1767514244389,-927.97486047,0.00018,2]
[400402578,1767514244403,-435.582103,0.00018,2]
[400402580,1767514245323,-360.55851076,0.00018,2]
[400402582,1767514245335,-1952986.4723092,0.00018,2]
[400402625,1767514246337,-759.48108643,0.00018,2]
[400402626,1767514246349,-472.28752402,0.00018,2]
[400402627,1767514246378,-122904.42550348,0.00018,2]
[400402628,1767514246389,-569.16262264,0.00018,2]
[400402629,1767514246400,-349.87046341,0.00018,2]
[400402630,1767514246412,-6556.42355414,0.00018,2]
[400402631,1767514246423,-2811.35015583,0.00018,2]
[400402632,1767514246435,-866.3099,0.00018,2]
[400402633,1767514246460,-2049.43256005,0.00018,2]
[400402634,1767514246499,-8269.31704729,0.00018,2]
[400402635,1767514246525,-31900.83681111,0.00018,2]
[400402636,1767514246538,-365.6300001,0.00018,2]
[400402637,1767514246636,-808.13842488,0.00018,2]
[400402642,1767514260755,500.0,0.00043707,120]
[400402643,1767514262926,408.311299,0.0001791,2]
[400402644,1767514276119,-500.0,0.00017999,2]
[400402645,1767514276148,-305.71627241,0.00017999,2]
[400402646,1767514276172,-29.23807752,0.00017999,2]
[400402647,1767514281142,-208.2668177,0.00017999,2]
[400402651,1767514291589,-228.04850685,0.00017999,2]
[400402652,1767514291619,-99.89262828,0.00017999,2]
[400402653,1767514293264,395.516,0.0001764,2]
[400402654,1767514294833,-309.54306662,0.00017999,2]
[400402655,1767514298518,-90.5643051,0.00017999,2]
[400402656,1767514298551,-74.92741872,0.00017999,2]
[400402657,1767514300535,-182.95573177,0.00017999,2]
[400402658,1767514302576,304.67165451,0.00016306,2]
[400402666,1767514322085,150.0,0.00017999,2]
[400402671,1767514332872,159.67108242,0.000179,2]
[400402672,1767514333921,43883.08,0.00043707,120]
[400402673,1767514351060,-152.40432235,0.00017999,2]
[400402674,1767514351082,-49.58402514,0.00017999,2]
[400402675,1767514353329,-203.37762642,0.00017999,2]
[400402737,1767514501297,300.0,0.00017999,2]
[400402738,1767514501463,1200.0,0.00017999,2]
[400402739,1767514507169,785.59234062,0.000179,2]
[400402740,1767514516666,-95.1508186,0.00017999,2]
[400402741,1767514516699,-415.4215435,0.00017999,2]
[400402742,1767514516752,8276.9408,0.00043707,120]
[400402743,1767514519860,-84.5784565,0.00017999,2]
[400402744,1767514519890,-178.69160164,0.00017999,2]
[400402745,1767514522064,-321.30839836,0.00017999,2]
[400402746,1767514522100,-199.94228141,0.00017999,2]
[400402747,1767514524815,-191.29824996,0.00017999,2]
[400402748,1767514528587,-108.75946863,0.00017999,2]
[400402749,1767514528618,-84.2388424,0.00017999,2]
[400402750,1767514529882,2931.98553621,0.0001799,2]
[400402751,1767514530153,-266.06579525,0.00017999,2]
[400402752,1767514532485,-149.69536235,0.00017999,2]
[400402753,1767514532516,-58.62394479,0.00017999,2]
[400402754,1767514536252,-232.34431542,0.00017999,2]
[400402755,1767514543540,198.98252186,0.00016438,2]
[400402756,1767514543628,2848.42747814,0.00016438,2]
[400402757,1767514562146,500.0,0.00043707,120]
[400402758,1767514620540,500.0,0.00017999,2]
[400402759,1767514620773,500.0,0.00017999,2]
[400402760,1767514621007,500.0,0.00017999,2]
[400402761,1767514621236,500.0,0.00017999,2]
[400402762,1767514621476,500.0,0.00017999,2]
[400402763,1767514621706,637.66511868,0.00017999,2]
[400402765,1767514670659,3010.0,0.00017999,2]
[400402766,1767514674465,3240.0,0.00017556,2]
[400402767,1767514681584,300.0,0.00017998,2]
[400402768,1767514692026,312.34488132,0.00017999,5]
[400402769,1767514692116,749.46072703,0.00017999,5]
[400402770,1767514712501,1000.0,0.0001756,2]
[400402771,1767514745957,500.0,0.00017999,2]
[400402772,1767514746243,500.0,0.00017999,2]
[400402773,1767514746478,500.0,0.00017999,2]
[400402774,1767514746712,504.56873782,0.00017999,2]
[400402775,1767514746914,151.0,0.00043707,65]
[400402776,1767514747219,204.370473,0.00043707,65]
[400402777,1767514750895,300.0,0.00017999,2]
[400402778,1767514751016,152.142013,0.00043707,65]
[400402779,1767514761351,956.86766338,0.000179,2]
[400402780,1767514763468,151.0,0.00043707,65]
[400402781,1767514763761,151.0,0.00043707,65]
[400402782,1767514764071,151.0,0.00043707,65]
[400402783,1767514764695,151.0,0.00043707,65]
[400402784,1767514764849,151.0,0.00043707,65]
[400402785,1767514765178,151.0,0.00043707,65]
[400402786,1767514765334,163.873903,0.00043707,65]
[400402787,1767514765556,151.0,0.00043707,65]
[400402788,1767514765870,151.0,0.00043707,65]
[400402789,1767514766158,282.997265,0.00043707,65]
[400402790,1767514770827,151.0,0.00043707,65]
[400402791,1767514771120,151.0,0.00043707,65]
[400402792,1767514771418,151.318722,0.00043707,65]
[400402793,1767514772895,5400.0,0.00043707,65]
[400402794,1767514773443,5400.0,0.00043707,65]
[400402795,1767514773513,5400.0,0.00043707,65]
[400402796,1767514773797,5400.0,0.00043707,65]
[400402797,1767514774088,5400.0,0.00043707,65]
[400402798,1767514774378,5400.0,0.00043707,65]
[400402799,1767514774795,5400.0,0.00043707,65]
[400402800,1767514774842,267.099769,0.00043707,65]
[400402801,1767514774958,5400.0,0.00043707,65]
[400402802,1767514775242,5400.0,0.00043707,65]
[400402803,1767514775530,5400.0,0.00043707,65]
[400402804,1767514775812,5400.0,0.00043707,65]
[400402805,1767514776106,5400.0,0.00043707,65]
[400402806,1767514776400,5400.0,0.00043707,65]
[400402807,1767514776703,5400.0,0.00043707,65]
[400402808,1767514776984,5400.0,0.00043707,65]
[400402809,1767514777286,5400.0,0.00043707,65]
[400402810,1767514777566,5400.0,0.00043707,65]
[400402811,1767514777871,5400.0,0.00043707,65]
[400402812,1767514778167,5400.0,0.00043707,65]
[400402813,1767514778447,5400.0,0.00043707,65]
[400402814,1767514794453,4761.22801,0.00043707,65]
[400402815,1767514794798,4761.22801,0.00043707,65]
[400402816,1767514795098,4761.22801,0.00043707,65]
[400402817,1767514795410,4761.22801,0.00043707,65]
[400402818,1767514795720,4761.22801,0.00043707,65]
[400402819,1767514796020,4761.22801,0.00043707,65]
[400402820,1767514796344,4761.22801,0.00043707,65]
[400402821,1767514796643,4761.22801,0.00043707,65]
[400402822,1767514797039,4761.22801,0.00043707,65]
[400402823,1767514797370,4761.22801,0.00043707,65]
[400402824,1767514797672,4761.22801,0.00043707,65]
[400402825,1767514798264,4761.22801,0.00043707,65]
[400402826,1767514798557,4761.22801,0.00043707,65]
[400402827,1767514798854,4761.22801,0.00043707,65]
[400402828,1767514799141,4761.22801,0.00043707,65]
[400402829,1767514799411,500.0,0.00017999,2]
[400402830,1767514799524,4761.22801,0.00043707,65]
[400402831,1767514799680,500.0,0.00017999,2]
[400402832,1767514799811,4761.22801,0.00043707,65]
[400402833,1767514799901,507.49845072,0.00017999,2]
[400402834,1767514800106,4761.22801,0.00043707,65]
[400402835,1767514800441,4761.22801,0.00043707,65]
[400402836,1767514800836,4761.228016,0.00043707,65]
[400402837,1767514801284,300.0,0.00017998,2]
[400402838,1767514801504,1200.0,0.00017998,2]
[400402839,1767514806596,502.91817554,0.00017999,2]
[400402842,1767514808796,151.0,0.00043707,65]
[400402843,1767514809121,151.0,0.00043707,65]
[400402844,1767514809485,151.0,0.00043707,65]
[400402845,1767514809807,151.0,0.00043707,65]
[400402846,1767514810092,151.0,0.00043707,65]
[400402847,1767514810402,151.0,0.00043707,65]
[400402848,1767514810498,241.804721,0.00043707,65]
[400402849,1767514810789,290.929474,0.00043707,65]
[400402850,1767514811316,151.0,0.00043707,65]
[400402851,1767514811658,151.0,0.00043707,65]
[400402852,1767514811980,151.0,0.00043707,65]
[400402853,1767514812265,229.392799,0.00043707,65]
[400402854,1767514812956,666.0,0.00017999,2]
[400402855,1767514813700,812.69624551,0.00017999,2]
[400402856,1767514813799,5.55375449,0.00017999,2]
[400402858,1767514815877,151.0,0.00043707,65]
[400402859,1767514816287,151.0,0.00043707,65]
[400402860,1767514816635,151.0,0.00043707,65]
[400402861,1767514816922,221.744876,0.00043707,65]
[400402862,1767514817040,500.0,0.00017999,2]
[400402863,1767514817941,1062.96840892,0.00017999,5]
[400402864,1767514818054,1062.96840892,0.00017999,5]
[400402865,1767514818852,151.0,0.00043707,65]
[400402866,1767514819155,151.0,0.00043707,65]
[400402867,1767514821141,500.0,0.00017999,2]
[400402868,1767514821370,189.68412088,0.00017999,2]
[400402869,1767514822639,151.0,0.00043707,65]
[400402870,1767514823050,151.0,0.00043707,65]
[400402871,1767514823355,176.225197,0.00043707,65]
[400402872,1767514823537,151.0,0.00043707,65]
[400402873,1767514824018,182.568848,0.00043707,65]
[400402874,1767514830753,151.0,0.00043707,65]
[400402875,1767514830942,151.0,0.00043707,65]
[400402876,1767514831245,151.0,0.00043707,65]
[400402877,1767514831547,151.0,0.00043707,65]
[400402878,1767514831845,151.0,0.00043707,65]
[400402879,1767514832131,267.079725,0.00043707,65]
[400402880,1767514833650,151.0,0.00043707,65]
[400402881,1767514833951,151.0,0.00043707,65]
[400402882,1767514834237,203.022393,0.00043707,65]
[400402883,1767514834614,151.0,0.00043707,65]
[400402884,1767514834893,151.0,0.00043707,65]
[400402885,1767514835180,151.0,0.00043707,65]
[400402886,1767514835449,151.0,0.00043707,65]
[400402887,1767514835783,151.0,0.00043707,65]
[400402888,1767514836069,151.0,0.00043707,65]
[400402889,1767514836718,151.0,0.00043707,65]
[400402890,1767514836809,151.0,0.00043707,65]
[400402891,1767514837001,151.0,0.00043707,65]
[400402892,1767514837315,151.0,0.00043707,65]
[400402893,1767514837599,187.520892,0.00043707,65]
[400402894,1767514839034,151.0,0.00043707,65]
[400402895,1767514839336,151.0,0.00043707,65]
[400402896,1767514839635,151.0,0.00043707,65]
[400402897,1767514839931,151.0,0.00043707,65]
[400402898,1767514840230,151.0,0.00043707,65]
[400402899,1767514840526,151.0,0.00043707,65]
[400402900,1767514840658,362.21906,0.00043707,65]
[400402901,1767514840906,234.327759,0.00043707,65]
[400402902,1767514840957,362.21906,0.00043664,65]
[400402903,1767514841051,176.601771,0.00043664,65]
[400402904,1767514841254,362.21906,0.00043664,65]
[400402905,1767514841302,151.0,0.00043664,65]
[400402906,1767514841350,176.601771,0.00043664,65]
[400402907,1767514841556,151.0,0.00043664,65]
[400402908,1767514841605,362.21906,0.00043664,65]
[400402909,1767514841654,176.601771,0.00043664,65]
[400402910,1767514841843,154.087628,0.00043664,65]
[400402911,1767514841895,362.21906,0.00043664,65]
[400402912,1767514841943,176.601771,0.00043664,65]
[400402913,1767514842159,362.21906,0.00043664,65]
[400402914,1767514842210,176.601771,0.00043664,65]
[400402915,1767514842449,362.21906,0.00043664,65]
[400402916,1767514842560,176.601771,0.00043664,65]
[400402917,1767514842734,362.21906,0.00043664,65]
[400402918,1767514842781,176.601771,0.00043664,65]
[400402919,1767514843041,362.21906,0.00043664,65]
[400402920,1767514843089,176.601771,0.00043664,65]
[400402921,1767514843372,362.21906,0.00043664,65]
[400402922,1767514843464,176.601771,0.00043664,65]
[400402923,1767514843623,362.21906,0.00043664,65]
[400402924,1767514843672,176.601771,0.00043664,65]
[400402925,1767514843921,362.21906,0.00043664,65]
[400402926,1767514843970,176.601771,0.00043664,65]
[400402927,1767514844255,362.21906,0.00043664,65]
[400402928,1767514844304,176.601771,0.00043664,65]
[400402929,1767514844540,176.601771,0.00043664,65]
[400402930,1767514844590,362.21906,0.00043664,65]
[400402931,1767514844702,1000.0,0.00017999,2]
[400402932,1767514844876,362.21906,0.00043664,65]
[400402933,1767514844983,176.601771,0.00043664,65]
[400402934,1767514845172,362.21906,0.00043664,65]
[400402935,1767514845290,176.601771,0.00043664,65]
[400402936,1767514845502,362.21906,0.00043664,65]
[400402937,1767514845587,176.601771,0.00043664,65]
[400402938,1767514845803,362.21906,0.00043664,65]
[400402939,1767514845869,176.601771,0.00043664,65]
[400402940,1767514846113,362.21906,0.00043664,65]
[400402941,1767514846168,176.601771,0.00043664,65]
[400402942,1767514846420,362.219067,0.00043664,65]
[400402943,1767514846469,176.601771,0.00043664,65]
[400402944,1767514846757,176.601777,0.00043664,65]
[400402945,1767514849062,204.730222,0.00043664,65]
[400402946,1767514861039,500.0,0.00043664,120]
[400402947,1767514861308,300.0,0.00017998,2]
[400402948,1767514861859,550.0,0.00017998,2]
[400402949,1767514865983,500.0,0.00017999,2]
[400402950,1767514870418,186.62731333,0.00017726,2]
[400402951,1767514871266,150.0,0.00017726,2]
[400402952,1767514871451,150.0,0.00017863,2]
[400402953,1767514873314,151.0,0.00043664,65]
[400402954,1767514873617,151.0,0.00043664,65]
[400402955,1767514874259,151.0,0.00043664,65]
[400402956,1767514874561,151.0,0.00043664,65]
[400402957,1767514874868,151.0,0.00043664,65]
[400402958,1767514875166,151.0,0.00043664,65]
[400402959,1767514875541,151.0,0.00043664,65]
[400402960,1767514875859,151.0,0.00043664,65]
[400402961,1767514876149,151.0,0.00043664,65]
[400402962,1767514876443,151.0,0.00043664,65]
[400402963,1767514876752,151.0,0.00043664,65]
[400402964,1767514877079,151.0,0.00043664,65]
[400402965,1767514877384,151.0,0.00043664,65]
[400402966,1767514877728,151.0,0.00043664,65]
[400402967,1767514878028,151.0,0.00043664,65]
[400402968,1767514878320,151.0,0.00043664,65]
[400402969,1767514878633,189.224024,0.00043664,65]
[400402970,1767514891104,500.0,0.00017999,2]
[400402971,1767514891342,500.0,0.00017999,2]
[400402972,1767514891582,500.0,0.00017999,2]
[400402973,1767514893314,316.413,0.0001764,2]
[400402974,1767514902534,254.19668379,0.00016306,2]
[400402975,1767514903217,500.0,0.00017999,2]
[400402977,1767514903458,500.0,0.00017999,2]
[400402978,1767514903725,500.0,0.00017999,2]
[400402979,1767514903950,271.59830967,0.00017999,2]
[400402980,1767514904786,151.0,0.00043664,65]
[400402981,1767514905089,151.0,0.00043664,65]
[400402982,1767514905393,161.087965,0.00043664,65]
[400402988,1767514914343,-228.40169033,0.00017999,2]
[400402989,1767514914438,-500.0,0.00017999,2]
[400402990,1767514914538,-500.0,0.00017999,2]
[400402991,1767514915022,1500.0,0.00017502,2]
[400402994,1767514927521,6043.20661934,0.000179,2]
[400402995,1767514927622,9428.01594784,0.000179,2]
[400402996,1767514928604,151.0,0.00043664,65]
[400402997,1767514928932,151.0,0.00043664,65]
[400402998,1767514929239,151.0,0.00043664,65]
[400402999,1767514929536,151.0,0.00043664,65]
[400403000,1767514929833,151.0,0.00043664,65]
[400403001,1767514930127,151.0,0.00043664,65]
[400403002,1767514930445,151.0,0.00043664,65]
[400403003,1767514931047,151.0,0.00043664,65]
[400403004,1767514931134,151.0,0.00043664,65]
[400403005,1767514931334,268.546804,0.00043664,65]
[400403006,1767514936077,505.99908912,0.00017999,2]
[400403007,1767514938541,269.93,0.00043664,120]
[400403010,1767514951074,65.99496304,0.00017531,2]
[400403011,1767514951168,7625.48503696,0.00017531,2]
[400403012,1767514981373,300.0,0.00017998,2]
[400403013,1767514990225,2074.52496304,0.00017726,2]
[400403014,1767514990303,297.47503696,0.00017726,2]
[400403015,1767514990424,2372.0,0.00017863,2]
[400403036,1767515003581,159.59897,0.00043664,65]
[400403094,1767515050262,1422.84,0.00017336,2]
[400403095,1767515051754,200.0,0.00017726,2]
[400403107,1767515101254,300.0,0.00017998,2]
[400403109,1767515117720,200.0,0.00017344,2]
[400403110,1767515122449,367.28,0.00013699,2]
[400403111,1767515135806,1447.589795,0.00043664,65]
[400403112,1767515136101,1447.589795,0.00043664,65]
[400403113,1767515136391,1447.589795,0.00043664,65]
[400403114,1767515136737,1447.589795,0.00043664,65]
[400403115,1767515137076,1447.589795,0.00043664,65]
[400403116,1767515137370,1447.589795,0.00043664,65]
[400403117,1767515137424,155.170829,0.00043664,65]
[400403118,1767515137663,1447.589795,0.00043664,65]
[400403119,1767515137717,155.170829,0.00043664,65]
[400403120,1767515137957,1447.589795,0.00043664,65]